[Event "Grand Prix Romania 1st Stage 2024"]
[Site "Bucuresti"]
[Date "2024.03.24"]
[Round "8.23"]
[White "Daianu, Cristian-Clement"]
[Black "Shuvalova, Polina"]
[Result "1-0"]
[ECO "B90"]
[WhiteElo "2201"]
[BlackElo "2455"]
[Annotator "TA"]
[PlyCount "89"]
[EventDate "2024.03.20"]
[EventType "swiss"]
[EventCountry "ROU"]
[SourceTitle "playchess.com"]
[Source "ChessBase"]
[SourceQuality "1"]
[TimeControl "900+5"]

{[%evp 12,89,34,0,59,42,53,47,46,30,68,29,29,8,0,15,68,37,31,0,0,-29,-48,-54,1,0,0,0,0,0,68,16,168,169,179,192,182,133,194,104,508,279,299,292,708,625,965,548,1067,1003,1075,1008,1108,1058,1174,996,964,959,1741,1495,1263,500,1181,1210,1050,827,928,957,939,942,1056,1027,1010,573,557,533,29987,29988,29998,29998]} 1. e4 {[%emt 0:00:02]} c5 {[%emt 0:00:01]} 2. Nf3 {[%emt 0:00:02]} d6 {[%emt 0:00:01]} 3. d4 {[%emt 0:00:01]} cxd4 {[%emt 0:00:02]} 4. Nxd4 {[%emt 0:00:02]} Nf6 {[%emt 0:00:01]} 5. Nc3 {[%emt 0:00:01]} a6 {[%emt 0:00:02]} 6. h3 {[%emt 0:00:18]} e5 {[%emt 0:00:07]} 7. Nb3 {[%emt 0:00:06]} h5 {[%emt 0:00:07]} (7... Be7 $11) 8. Bg5 $14 {[%emt 0:00:11]} Be6 {[%emt 0:00:04]} 9. Qd2 {[%emt 0:00:47]} Nbd7 {[%emt 0:00:05] White is slightly better.} 10. O-O-O {[%emt 0:00:10]} Be7 {[%emt 0:00:06]} 11. Kb1 {[%emt 0:02:58]} b5 {[%emt 0:00:08][%cal Bb7b5,Bb5b4][%mdl 32]} 12. Bd3 {[%emt 0:01:59]} b4 $1 {[%emt 0:00:28]} 13. Na4 {[%emt 0:00:08]} O-O {[%emt 0:00:43]} (13... Rb8 $11) 14. g4 {[%emt 0:00:29] White is more active.} a5 {[%emt 0:02:40]} 15. gxh5 {[%emt 0:00:34]} Nxh5 {[%emt 0:00:17]} 16. Be3 {[%emt 0:00:38]} Qc7 {[%emt 0:00:30]} 17. Qe2 {[%emt 0:00:27]} Nhf6 {[%emt 0:00:26]} (17... Ndf6 $15) 18. f4 {[%emt 0:00:27]} (18. Rhg1 {is more complex.} Rfc8 19. f4 Qc6 20. f5) 18... exf4 {[%emt 0:00:54]} 19. Bxf4 {[%emt 0:00:03]} Ne5 $1 {[%emt 0:00:59]} 20. Rhg1 {[%emt 0:04:16]} Qc6 {[%emt 0:01:12]} (20... Bd7 $11 21. Bh6 g6 22. Bxf8 Bxf8) 21. Nd4 {[%emt 0:00:29]} ({White should try} 21. Qg2 $14 g6 22. Nd4 Qxa4 (22... Bxa2+ $2 23. Ka1 $18) 23. Nxe6) 21... Qc7 $2 {[%emt 0:01:35]} (21... Qxa4 $2 22. Nxe6 fxe6 23. Bb5 $18) (21... Bxa2+ $1 $11 22. Kc1 (22. Kxa2 Qxa4+ 23. Kb1 b3 $11) 22... Nxd3+ (22... Qxa4 $2 23. Bb5 $18) 23. Qxd3 Qxe4 (23... Qxa4 24. Nf5 $11)) 22. Bxe5 {[%emt 0:00:25]} dxe5 {[%emt 0:00:07]} 23. Nxe6 {[%emt 0:00:48]} fxe6 {[%emt 0:00:02]} 24. Bc4 $40 {[%emt 0:00:01][%mdl 128] White is out for blood.} (24. h4 $18) 24... Qc6 {[%emt 0:00:11] [#]} (24... Rad8 $16 {keeps fighting.}) 25. Rg6 {[%emt 0:00:54]} (25. Rg5 $1 $18 {[%cal Rg5e5] And now Rxe5! would win.} Nh7 26. Rxe5 (26. Bb5 Qc7 $18)) 25... Kf7 $2 {[%emt 0:01:40][%mdl 8192]} (25... Qxa4 $2 {perishes.} 26. Bb5 $18 (26. Bxe6+ Kh8 $18) (26. Bxe6+ Kh8 $18)) (25... Rad8 $16 {is more resistant.} 26. Re1 (26. Rdg1 Rf7 $16) 26... Kh7 (26... Qxa4 27. Bb5 $18)) 26. Rdg1 {[%emt 0:00:10]} Rg8 {[%emt 0:00:01][%cal Bf8g8,Bg8h8,Bh8h4][%mdl 32]} 27. b3 {[%emt 0:00:06]} Bf8 $2 {[%emt 0:00:22]} (27... Rad8 28. h4 (28. Nb2 Bc5 $18) 28... Rd4) 28. Qf3 {[%emt 0:00:27]} Rh8 {[%emt 0:00:30] Black is weak on the light squares} 29. Nb2 {[%emt 0:00:05]} Rh4 {[%emt 0:00:33]} 30. Nd3 {[%emt 0:00:16]} Qxe4 {[%emt 0:01:33] [#]} 31. Nxe5+ $3 {[%emt 0:00:06][%mdl 512]} Ke7 {[%emt 0:01:01][%cal Bf7e7,Be7d8,Bd8e8][%mdl 32]} (31... Ke8 32. Rxf6) 32. Qg3 {[%emt 0:00:11] Threatens to win with Rxg7+.} Rh7 {[%emt 0:00:07]} 33. Nd3 {[%emt 0:00:03]} Rc8 {[%emt 0:00:10] Against Qc7+} 34. Re1 {[%emt 0:00:01]} Qd4 {[%emt 0:00:21]} 35. Rxe6+ {[%emt 0:00:03]} Kd8 {[%emt 0:00:01]} 36. Re1 {[%emt 0:00:03]} (36. Bb5 $142 {[%cal Og6f6] White threatens Rgxf6! and mate.} Nd7 37. Rd6 Bxd6 38. Rxd6 Qxd6 39. Qxd6) 36... Ne4 {[%emt 0:00:10] [#]} (36... Rh4 $142 37. Qf3 Qc3) 37. Rxe4 $1 $18 {[%emt 0:00:05][%mdl 512]} Qxe4 {[%emt 0:00:01]} 38. Qg5+ {[%emt 0:00:02]} Be7 {[%emt 0:00:19]} 39. Qxa5+ {[%emt 0:00:01]} Ke8 {[%emt 0:00:01]} 40. Re6 {[%emt 0:00:01]} Qb7 {[%emt 0:00:22]} 41. Qf5 {[%emt 0:00:08]} (41. Qxb4 Qxb4 42. Nxb4 Rxc4 43. bxc4 Kf7 $14) 41... Rh6 {[%emt 0:00:19]} 42. Ne5 {[%emt 0:00:15]} Rxe6 {[%emt 0:00:08]} 43. Qxe6 {[%emt 0:00:02]} Qh1+ {[%emt 0:00:07]} 44. Kb2 {[%emt 0:00:01]} Qe1 {[%emt 0:00:04]} 45. Bb5+ {[%emt 0:00:03] Weighted Error Value: White=0.95/Black=0.54.  Loses game:     	---       	Black=1      Mistake:       	White=3     	Black=6      Inaccurate:     	White=5     	Black=3      OK:         	White=3     	Black=5      Best:        	White=1     	Black=2      Strong:       	---       	Black=2} 1-0

[Event "Grand Prix Romania 1st Stage 2024"]
[Site "Bucuresti"]
[Date "2024.03.24"]
[Round "8.24"]
[White "Baltag, Iulian"]
[Black "Stefan, Romulus-Cristian"]
[Result "1-0"]
[ECO "C45"]
[WhiteElo "2412"]
[BlackElo "2171"]
[Annotator "TA"]
[PlyCount "43"]
[EventDate "2024.03.20"]
[EventType "swiss"]
[EventCountry "ROU"]
[SourceTitle "playchess.com"]
[Source "ChessBase"]
[SourceQuality "1"]
[TimeControl "900+5"]

{[%evp 12,43,14,22,47,56,66,46,43,52,56,43,86,85,81,80,96,81,100,90,154,150,166,159,198,169,235,252,240,231,224,191,927,916]} 1. e4 {[%emt 0:00:02]} e5 {[%emt 0:00:01]} 2. Nf3 {[%emt 0:00:02][%cal Bg1f3,Bf3d4,Bd4f5][%mdl 32]} Nc6 {[%emt 0:00:01]} 3. d4 {[%emt 0:00:05]} exd4 {[%emt 0:00:02]} 4. Nxd4 {[%emt 0:00:02]} Bb4+ {[%emt 0:00:02]} 5. c3 {[%emt 0:00:01]} Bc5 {[%emt 0:00:01]} 6. Be3 {[%emt 0:00:01]} Bb6 {[%emt 0:00:01]} 7. Nf5 {[%emt 0:00:02]} d5 {[%emt 0:00:10]} 8. Nxg7+ {[%emt 0:01:03]} Kf8 {[%emt 0:00:01] [#] ...Bxe3 would now be deadly.} 9. Bxb6 {[%emt 0:00:22]} (9. Nh5 {feels hotter.} Qh4 10. Ng3 dxe4 11. Qd2) 9... axb6 {[%emt 0:00:24] White is slightly better.} 10. exd5 {[%emt 0:00:20]} Kxg7 {[%emt 0:02:22]} 11. dxc6 {[%emt 0:00:04]} Qg5 {[%emt 0:00:40] And now ...Nf6 would win.} 12. Be2 {[%emt 0:00:24]} Nf6 {[%emt 0:00:09]} 13. O-O {[%emt 0:00:17]} bxc6 {[%emt 0:00:18][%cal Oh8d8]} 14. Qd2 {[%emt 0:00:40]} Qg6 {[%emt 0:00:11]} 15. Bf3 {[%emt 0:00:35]} Bd7 {[%emt 0:00:06]} ({Better is} 15... Be6) 16. Qf4 $16 {[%emt 0:00:14]} Rac8 {[%emt 0:00:24]} 17. Nd2 {[%emt 0:00:11][%cal Bb1d2,Bd2c4,Bc4e5][%mdl 32]} c5 {[%emt 0:00:59]} 18. Nc4 {[%emt 0:00:16] [#] Ne5 is the strong threat.} Rhe8 {[%emt 0:00:30]} (18... Qf5 {might work better.} 19. Qxf5 Bxf5) 19. Ne5 $18 {[%emt 0:00:06]} Qf5 {[%emt 0:00:09]} 20. Qg3+ {[%emt 0:00:03]} Kf8 {[%emt 0:00:04]} 21. Nxd7+ {[%emt 0:00:19]} Nxd7 $2 {[%emt 0:00:01]} (21... Qxd7 22. Rad1 Qe6) 22. Bg4 {[%emt 0:00:06] Weighted Error Value: White=0.09 (flawless) /Black=0.29 (precise) .  Mistake:       	---       	Black=3      Inaccurate:     	---       	Black=1      OK:         	White=8     	Black=2      Best:        	White=1     	Black=2} 1-0

[Event "Grand Prix Romania 1st Stage 2024"]
[Site "Bucuresti"]
[Date "2024.03.24"]
[Round "8.25"]
[White "Magold, Filip"]
[Black "Vasilescu, Lucian-Mihail"]
[Result "1-0"]
[ECO "B22"]
[WhiteElo "2403"]
[BlackElo "2116"]
[Annotator "TA"]
[PlyCount "69"]
[EventDate "2024.03.20"]
[EventType "swiss"]
[EventCountry "ROU"]
[SourceTitle "playchess.com"]
[Source "ChessBase"]
[SourceQuality "1"]
[TimeControl "900+5"]

{[%evp 10,68,26,32,30,27,62,60,68,40,68,59,60,53,61,19,31,41,36,0,0,-5,-5,-92,-32,-107,-108,-92,-106,-99,-104,-98,-65,-63,-66,-52,-56,-61,-53,-57,-41,-58,-33,-41,0,0,0,0,0,0,0,0,0,0,0,-70,29997,29998,29998,29999,29999]} 1. e4 {[%emt 0:00:03]} c5 {[%emt 0:00:00]} 2. Nf3 {[%emt 0:00:01]} a6 {[%emt 0:00:01]} 3. c3 {[%emt 0:00:03]} e6 {[%emt 0:00:04]} 4. d4 {[%emt 0:00:03]} d5 {[%emt 0:00:01]} 5. exd5 {[%emt 0:00:33]} exd5 {[%emt 0:00:01]} 6. Bd3 {[%emt 0:00:02]} Nc6 {[%emt 0:00:06]} 7. O-O {[%emt 0:00:05]} Bd6 {[%emt 0:00:01]} 8. dxc5 {[%emt 0:00:01]} Bxc5 {[%emt 0:00:01] Weiß steht etwas besser.} 9. Nbd2 {[%emt 0:00:03]} Nge7 {[%emt 0:00:02]} 10. Nb3 {[%emt 0:00:03]} Bd6 {[%emt 0:00:35]} 11. h3 {[%emt 0:00:05]} O-O {[%emt 0:00:14]} 12. Bg5 {[%emt 0:00:11]} h6 {[%emt 0:00:15]} 13. Bh4 {[%emt 0:00:03]} Qc7 {[%emt 0:00:17]} 14. Qd2 {[%emt 0:00:02]} Bf4 {[%emt 0:00:50]} 15. Qe1 {[%emt 0:03:02]} Nf5 {[%emt 0:00:01] Weiss sollte ...Ne5 verhindern.} 16. Rd1 {[%emt 0:01:04]} (16. Qb1 $11 {hält das Gleichgewicht.} g6 (16... Nxh4 17. Nxh4 Ne5 18. Nd4 $11) 17. Qc2) 16... Bd7 {[%emt 0:01:21]} (16... Ne5 $17 {...Nxf3+ ist eine echte Drohung.} 17. Nxe5 Re8 (17... Nxh4 18. Ng4 $17) 18. Bxf5 Rxe5) 17. Bxf5 {[%emt 0:00:08]} (17. Qe2 $1 $15) 17... Rfe8 $36 {[%emt 0:00:42][%mdl 2048] Weiss steht unter starkem Druck.} (17... Bxf5 $6 18. Bg3 $11) 18. Bxd7 {[%emt 0:00:25]} Rxe1 19. Rfxe1 {[%emt 0:00:01]} Qxd7 {[%emt 0:00:23]} 20. Nc5 {[%emt 0:00:01]} Qc7 {[%emt 0:01:21]} 21. Rxd5 {[%emt 0:00:02]} g5 {[%emt 0:00:09]} 22. Bg3 {[%emt 0:00:39]} Bxg3 {[%emt 0:00:02]} 23. fxg3 {[%emt 0:00:01]} Rd8 {[%emt 0:00:43] Wehrt Rd7 ab} (23... Qxg3 24. Rd7 $17) 24. Rxd8+ {[%emt 0:00:34]} Nxd8 {[%emt 0:00:01]} 25. Ne4 {[%emt 0:00:20]} f5 {[%emt 0:02:03]} 26. Nf2 {[%emt 0:01:21]} Nf7 {[%emt 0:01:17]} (26... Qxg3 $2 27. Re8+ Kh7 28. Rxd8 $18) 27. g4 {[%emt 0:00:09]} fxg4 {[%emt 0:00:18]} 28. Nxg4 {[%emt 0:00:04]} Qb6+ {[%emt 0:00:17]} 29. Nd4 {[%emt 0:01:00]} Qxb2 {[%emt 0:01:16]} 30. Re8+ {[%emt 0:00:13]} Kh7 {[%emt 0:00:26]} 31. Nf6+ {[%emt 0:02:28]} Kg6 {[%emt 0:00:18]} 32. Ne4 {[%emt 0:00:09]} (32. Nd5 $11 Qb1+ (32... Qxa2 33. Rg8+ Kh5 34. Nf6+ Kh4 35. Nf5#) 33. Kh2) 32... Qxa2 $2 {[%emt 0:00:46][%mdl 8192] [#]} (32... Nd8 $15 33. Kh2 Qb6) 33. Rg8+ {[%emt 0:00:06] Weiß setzt Matt.} Kh5 {[%emt 0:00:11]} 34. Ng3+ {[%emt 0:00:03] Ein dynamisches Springerpaar.} Kh4 {[%emt 0:00:05]} 35. Ndf5# {[%emt 0:00:02] Gewichteter Fehlerwert: Weiß=0.19 (sehr präzise) /Schwarz=0.23 (präzise) .  Verlustzug:     	---       	Schwarz=1     Fehler:       	Weiß=3     	Schwarz=1     Ungenau:       	Weiß=3     	Schwarz=4     OK:         	Weiß=8     	Schwarz=10    Bester:       	Weiß=4     	---} 1-0

[Event "Grand Prix Romania 1st Stage 2024"]
[Site "Bucuresti"]
[Date "2024.03.24"]
[Round "8.26"]
[White "Vrencian, Lehel"]
[Black "Ben Ari, Yannay"]
[Result "0-1"]
[ECO "B22"]
[WhiteElo "2156"]
[BlackElo "2434"]
[Annotator "TA"]
[PlyCount "62"]
[EventDate "2024.03.20"]
[EventType "swiss"]
[EventCountry "ROU"]
[SourceTitle "playchess.com"]
[Source "ChessBase"]
[SourceQuality "1"]
[TimeControl "900+5"]

{[%evp 13,62,14,30,25,32,5,31,20,50,-61,-63,-64,-67,-63,-35,-39,11,0,10,4,31,0,7,-18,0,-97,-62,-240,-227,-238,-242,-370,-362,-345,-359,-495,-454,-445,-404,-408,-409,-393,-381,-408,-369,-358,-361,-406,-385,-5243,-4941]} 1. e4 {[%emt 0:00:02]} c5 {[%emt 0:06:25]} 2. Nf3 {[%emt 0:00:03]} e6 {[%emt 0:00:01]} 3. c3 {[%emt 0:00:06]} d5 {[%emt 0:00:02]} 4. exd5 {[%emt 0:00:19]} Qxd5 {[%emt 0:00:02]} 5. d4 {[%emt 0:00:03]} Nf6 {[%emt 0:00:01]} 6. Na3 {[%emt 0:00:36]} a6 {[%emt 0:00:23]} 7. Nc4 {[%emt 0:00:15]} Nbd7 {[%emt 0:00:02]} 8. Be2 {[%emt 0:01:07]} b5 {[%emt 0:00:17]} 9. Na5 {[%emt 0:01:26]} Qd6 {[%emt 0:02:28]} 10. a4 {[%emt 0:00:58] White is slightly better.} Qc7 {[%emt 0:00:08]} 11. axb5 {[%emt 0:01:25]} (11. dxc5 $1 $14 Bxc5 (11... Qxa5 12. b4 $16) 12. b4) 11... axb5 $15 {[%emt 0:00:02]} 12. Nb3 {[%emt 0:00:01]} Rxa1 {[%emt 0:00:03]} 13. Nxa1 {[%emt 0:00:01]} b4 {[%emt 0:00:01]} 14. O-O {[%emt 0:01:28]} Be7 {[%emt 0:00:04]} (14... Bb7 $15) 15. dxc5 $11 {[%emt 0:00:48]} bxc3 {[%emt 0:00:03]} 16. b4 {[%emt 0:00:19]} Nd5 {[%emt 0:00:17]} 17. Nc2 {[%emt 0:00:17]} O-O {[%emt 0:00:11]} 18. Bd3 {[%emt 0:01:11]} Bb7 {[%emt 0:00:19]} 19. Ng5 {[%emt 0:01:22]} (19. Re1 $11) 19... N7f6 {[%emt 0:00:02]} 20. Ne4 $2 {[%emt 0:02:24] [#] Loses the game.} ({White should try} 20. Qe2 $15) 20... Nxe4 $1 $19 {[%emt 0:01:03]} 21. Bxe4 {[%emt 0:00:02]} Nxb4 {[%emt 0:00:02]} 22. Bxh7+ {[%emt 0:01:26]} (22. Bxb7 $142 Qxb7 23. Be3) 22... Kxh7 {[%emt 0:00:02]} 23. Nxb4 {[%emt 0:00:01]} Qxc5 {[%emt 0:00:11] Active counter play!} 24. Nd3 {[%emt 0:00:21]} Qd5 {[%emt 0:00:28] White is weak on the light squares} 25. Nf4 {[%emt 0:00:54]} Qxd1 {[%emt 0:00:19]} 26. Rxd1 {[%emt 0:00:01]} Ra8 {[%emt 0:00:01]} 27. Ne2 {[%emt 0:00:15]} Bf6 {[%emt 0:00:03]} 28. Be3 {[%emt 0:00:05]} Ra2 {[%emt 0:00:12]} 29. Nc1 {[%emt 0:00:07]} Ra1 {[%emt 0:00:14] [#] White must now prevent ...c2.} 30. Re1 {[%emt 0:00:02]} c2 {[%emt 0:00:11] Hoping for ...Bc3.} 31. Nd3 $2 {[%emt 0:00:06]} (31. Re2 Be4 32. f3) 31... Rd1 {[%emt 0:00:02] Weighted Error Value: White=0.65/Black=0.15 (very precise) .  Loses game:     	White=1     	---        Mistake:       	White=4     	Black=1      Inaccurate:     	White=2     	Black=4      OK:         	White=8     	Black=9      Best:        	White=1     	Black=1      Strong:       	---       	Black=1} 0-1

[Event "Grand Prix Romania 1st Stage 2024"]
[Site "Bucuresti"]
[Date "2024.03.24"]
[Round "8.27"]
[White "Banzea, Alexandru-Bogdan"]
[Black "Filip, Andrei"]
[Result "0-1"]
[ECO "D00"]
[WhiteElo "2394"]
[BlackElo "2289"]
[Annotator "RC"]
[PlyCount "88"]
[EventDate "2024.03.20"]
[EventType "swiss"]
[EventCountry "ROU"]
[SourceTitle "playchess.com"]
[Source "ChessBase"]
[SourceQuality "1"]
[TimeControl "900+5"]

1. d4 {[%emt 0:00:02]} Nf6 {[%emt 0:00:01]} 2. Nc3 {[%emt 0:00:02]} d5 {[%emt 0:00:02]} 3. Bf4 {[%emt 0:00:03]} g6 {[%emt 0:00:15]} 4. e3 {[%emt 0:00:03]} Bg7 {[%emt 0:00:07]} 5. Nb5 {[%emt 0:00:02]} Na6 {[%emt 0:00:09]} 6. Nf3 {[%emt 0:00:02]} O-O {[%emt 0:00:34]} 7. h3 {[%emt 0:00:04]} c6 {[%emt 0:00:19]} 8. Nc3 {[%emt 0:00:03]} Nc7 {[%emt 0:00:35]} 9. Be2 {[%emt 0:00:02]} b6 {[%emt 0:01:23]} 10. a4 {[%emt 0:00:06]} a5 {[%emt 0:00:33]} 11. Ne5 {[%emt 0:00:08]} Bb7 {[%emt 0:00:18]} 12. O-O {[%emt 0:00:05]} Nce8 {[%emt 0:00:12]} 13. Bf3 {[%emt 0:01:49]} Nd6 {[%emt 0:00:07]} 14. Rc1 {[%emt 0:00:13]} e6 {[%emt 0:00:44]} 15. Ne2 {[%emt 0:01:55]} Nfe4 {[%emt 0:00:31]} 16. b3 {[%emt 0:04:27]} f6 {[%emt 0:01:45]} 17. Nd3 {[%emt 0:00:02]} Qe7 {[%emt 0:00:40]} 18. c4 {[%emt 0:00:08]} e5 {[%emt 0:00:17]} 19. cxd5 {[%emt 0:02:26]} cxd5 {[%emt 0:01:01]} 20. Bh2 {[%emt 0:01:56]} Ng5 {[%emt 0:00:06]} 21. Nc3 {[%emt 0:01:43]} e4 {[%emt 0:00:21]} 22. Bxd6 {[%emt 0:00:10]} Qxd6 {[%emt 0:00:04]} 23. Nb5 {[%emt 0:00:01]} Qd8 {[%emt 0:00:38]} 24. Nf4 {[%emt 0:00:02]} exf3 {[%emt 0:00:09]} 25. h4 {[%emt 0:00:02]} fxg2 {[%emt 0:00:14]} 26. Kxg2 {[%emt 0:00:42]} Ne4 {[%emt 0:01:41]} 27. Ne6 {[%emt 0:00:05]} Qe7 {[%emt 0:00:20]} 28. Nxf8 {[%emt 0:00:10]} Qxf8 {[%emt 0:00:01]} 29. Rc7 {[%emt 0:00:28]} Ba6 {[%emt 0:00:03]} 30. Qc2 {[%emt 0:00:02]} Nd6 {[%emt 0:00:16]} 31. Qc6 {[%emt 0:00:08]} Nf5 {[%emt 0:00:44]} 32. Qe6+ {[%emt 0:00:18]} Kh8 {[%emt 0:00:05]} 33. Rfc1 {[%emt 0:00:02]} Nxh4+ {[%emt 0:00:27]} 34. Kh3 {[%emt 0:00:01]} Nf5 {[%emt 0:00:32]} 35. Rf7 {[%emt 0:00:02]} Qg8 {[%emt 0:00:07]} 36. Rcc7 {[%emt 0:00:04]} Bc8 {[%emt 0:00:06]} 37. Rxc8 {[%emt 0:00:16]} Qxc8 {[%emt 0:00:05]} 38. Qxc8+ {[%emt 0:00:07]} Rxc8 {[%emt 0:00:01]} 39. Rb7 {[%emt 0:00:01]} Bf8 {[%emt 0:00:07]} 40. Rxb6 {[%emt 0:00:02]} Rc2 {[%emt 0:00:13]} 41. Rxf6 {[%emt 0:00:08]} Bb4 {[%emt 0:00:12]} 42. Rf7 {[%emt 0:00:16]} Rxf2 {[%emt 0:00:09]} 43. Nc7 {[%emt 0:00:02]} Rf3+ {[%emt 0:00:10]} 44. Kg4 {[%emt 0:00:09]} Rg3+ {[%emt 0:00:05]} 0-1

[Event "Grand Prix Romania 1st Stage 2024"]
[Site "Bucuresti"]
[Date "2024.03.24"]
[Round "8.28"]
[White "Padurean, Daniel-Cristian"]
[Black "Ghimpu, Samuel-Timotei"]
[Result "0-1"]
[ECO "B22"]
[WhiteElo "2115"]
[BlackElo "2467"]
[Annotator "TA"]
[PlyCount "101"]
[EventDate "2024.03.20"]
[EventType "swiss"]
[EventCountry "ROU"]
[SourceTitle "playchess.com"]
[Source "ChessBase"]
[SourceQuality "1"]
[TimeControl "900+5"]

{[%evp 20,101,-18,-12,-14,-16,-16,-39,-31,-33,-37,-86,-81,-131,-123,-144,-134,-111,-47,-122,-52,-41,-39,-55,-33,-124,-101,-99,-59,-168,-126,-159,-164,-152,-164,-164,-159,-166,-163,-155,-127,-199,-134,-295,-285,-349,-369,-401,-311,-406,-368,-404,-368,-391,-372,-379,-401,-365,-379,-681,-672,-663,-659,-660,-427,-628,-592,-704,-704,-633,-575,-1752,-1490,-29958,-29959,-29964,-29968,-29965,-29967,-29964,-29964,-7025,-6095,-5057]} 1. e4 {[%emt 0:00:01]} c5 {[%emt 0:00:20]} 2. c3 {[%emt 0:00:20]} Nf6 {[%emt 0:00:09]} 3. e5 {[%emt 0:00:01]} Nd5 {[%emt 0:00:01]} 4. d4 {[%emt 0:00:01]} cxd4 {[%emt 0:00:02]} 5. Nf3 {[%emt 0:00:01]} d6 {[%emt 0:00:03]} 6. cxd4 {[%emt 0:00:04]} Nc6 {[%emt 0:00:08]} 7. Bc4 {[%emt 0:00:01]} e6 {[%emt 0:00:02]} 8. O-O {[%emt 0:00:18]} Be7 {[%emt 0:00:02]} 9. Re1 {[%emt 0:00:19]} O-O {[%emt 0:00:06]} 10. Nc3 {[%emt 0:00:03]} dxe5 {[%emt 0:00:52]} 11. Nxe5 {[%emt 0:00:47]} Nxe5 {[%emt 0:00:10]} 12. Rxe5 {[%emt 0:00:38][%cal Rc4d5]} Bf6 {[%emt 0:00:13] Threatens to win with ...Nxc3.} 13. Rh5 {[%emt 0:01:20]} Nb6 {[%emt 0:00:29] Black is slightly better.} 14. Bd3 {[%emt 0:00:27]} g6 {[%emt 0:00:01][%cal Of6d4]} 15. Rh3 {[%emt 0:02:16]} (15. Bh6 $15) 15... e5 {[%emt 0:02:02]} 16. dxe5 {[%emt 0:00:40]} (16. Rg3 $142) 16... Bxh3 $17 {[%emt 0:00:21]} 17. exf6 {[%emt 0:00:01]} Bf5 {[%emt 0:00:11]} 18. Bxf5 {[%emt 0:00:26] Black must now prevent Bc2.} Qxd1+ {[%emt 0:00:02]} (18... gxf5 19. Qf3 Qxf6 20. h3) 19. Nxd1 {[%emt 0:00:00]} gxf5 {[%emt 0:00:06]} ({Black should play} 19... Rfe8 $1 $17 {[%cal Re8e1]} 20. Ne3 gxf5) 20. Bh6 $15 {[%emt 0:00:18]} Rfe8 {[%emt 0:00:10]} 21. Ne3 {[%emt 0:00:01]} Re6 {[%emt 0:00:08]} 22. Bg7 {[%emt 0:00:46]} (22. Nxf5 $15 Nd5 (22... Rxf6 23. g4 $11) 23. h3) 22... Rae8 $36 {[%emt 0:02:46][%mdl 2048] And now ...f4 would win. Keeping White busy.} 23. g3 {[%emt 0:02:19]} h5 {[%emt 0:00:25]} 24. Nxf5 {[%emt 0:01:34]} (24. Rd1 $15) 24... Kh7 {[%emt 0:01:24]} 25. Nh6 {[%emt 0:01:02]} Nd5 {[%emt 0:02:58]} 26. Nxf7 {[%emt 0:00:22] Hoping for Ng5+.} Nxf6 {[%emt 0:00:02]} 27. Bxf6 {[%emt 0:00:08]} Rxf6 $19 {[%emt 0:00:02][%mdl 4096] Endgame. KRR-KRN} 28. Ng5+ {[%emt 0:00:01] [#]} Kh6 $1 {[%emt 0:00:03][%mdl 1024] Black has strong compensation.} 29. Nh3 {[%emt 0:01:34]} Re2 {[%emt 0:00:04] Black is more active.} 30. b3 {[%emt 0:00:47]} (30. b4 $17) 30... Rd6 {[%emt 0:00:18]} (30... Ra6 $19 31. Rd1 h4 (31... Rexa2 $2 32. Rd4 $17) (31... Raxa2 32. Rd6+ Kg7 33. Rd7+ Kg8 34. Rxb7 $15)) 31. Nf4 $2 {[%emt 0:00:39] White does not recover from this.} (31. Kg2 $17 {is a better defense.}) 31... Red2 {[%emt 0:00:03]} 32. Kg2 {[%emt 0:00:11] [#]} Rd1 {[%emt 0:00:02]} 33. Rxd1 {[%emt 0:00:02]} Rxd1 {[%emt 0:00:01] KR-KN} 34. Ne6 {[%emt 0:00:12]} Rd2 {[%emt 0:00:08]} 35. a4 {[%emt 0:00:10]} Rd6 {[%emt 0:00:42]} 36. Nc5 {[%emt 0:00:07]} b6 {[%emt 0:00:05]} 37. Na6 {[%emt 0:00:04]} Rd3 {[%emt 0:00:12]} 38. b4 {[%emt 0:00:01]} Ra3 {[%emt 0:00:01]} 39. h4 $2 {[%emt 0:00:11]} (39. b5) 39... Rxa4 {[%emt 0:00:04]} 40. b5 {[%emt 0:00:01]} Rc4 {[%emt 0:00:21]} 41. f3 {[%emt 0:00:03]} Kg6 {[%emt 0:00:06]} 42. Kf2 {[%emt 0:00:01]} (42. Kh3 $142) 42... Kf5 {[%emt 0:00:07]} 43. Ke3 {[%emt 0:00:13]} Rc3+ {[%emt 0:00:09]} 44. Ke2 {[%emt 0:00:00]} Rc2+ {[%emt 0:00:02]} 45. Kd3 {[%emt 0:00:02]} Rg2 {[%emt 0:00:02]} 46. g4+ {[%emt 0:00:00]} hxg4 {[%emt 0:00:05]} 47. fxg4+ {[%emt 0:00:01]} Rxg4 {[%emt 0:00:02]} 48. h5 {[%emt 0:00:08]} Rh4 {[%emt 0:00:07]} 49. Nb8 {[%emt 0:00:10]} Rxh5 {[%emt 0:00:09]} 50. Nc6 {[%emt 0:00:02]} Rh7 {[%emt 0:00:10]} 51. Kd4 {[%emt 0:00:26] Weighted Error Value: White=0.67/Black=0.14 (very precise) .  Loses game:     	White=1     	---        Mistake:       	White=6     	Black=2      Inaccurate:     	White=2     	Black=1      OK:         	White=12    	Black=8      Best:        	White=3     	Black=6      Strong:       	---       	Black=1} 0-1